Cogmind - Beta 17 @@@ ROGUE MODE // 2026.07.11 @ 04:37:00 Player: kite Result: Destroyed by D-53 Grenadier with Mini Grenade Launcher Performance ------------- Evolutions (1) 500 Regions Visited (4) 800 Robots Destroyed (45) 225 Value Destroyed (1210) 1210 Prototype IDs (0) 0 Alien Tech Used (0) 0 Bonus (190) 190 TOTAL SCORE: 2925 Bonus ------- Follower Combat Kills 216 Friendly Fire -26 Cogmind --------- Core Integrity 0/400 Matter 200/300 Energy 99/100 System Corruption 1% Temperature Cool (0) Movement Core (50) Location -9/Mines Parts ------- > --- POWER (1) -------- (None) > --- PROPULSION (4) --- (None) > --- UTILITY (2) ------ (None) > --- WEAPON (2) ------- (None) > --- INVENTORY (5) ---- Aluminum Leg Aluminum Leg Improved Melee Analysis Suite Mini Grenade Launcher Hammer Peak State ------------ > --- POWER ------------ Ion Engine > --- PROPULSION ------- Aluminum Leg Aluminum Leg Carbon-fiber Leg Improved Carbon-fiber Leg > --- UTILITY ---------- Improved Heat Sink Large Storage Unit > --- WEAPON ----------- Field Laser Field Laser > --- INVENTORY -------- Ion Engine Aluminum Leg Aluminum Leg Aluminum Leg Improved Heat Sink Improved Melee Analysis Suite Improved Light Armor Plating Improved Light Armor Plating Improved Light Armor Plating Field Laser Field Laser Mini Grenade Launcher Datajack Hammer Mining Claw [Rating: 23] Favorites ----------- Power Ion Engine Engine Ion Engine Propulsion Aluminum Leg Treads Light Treads Leg Aluminum Leg Utility Large Storage Unit Device Improved Heat Sink Storage Large Storage Unit Hackware Hacking Suite Protection Improved Light Armor Plating Weapon Field Laser Energy Gun Field Laser Energy Cannon Particle Cannon Ballistic Gun Light Assault Rifle Launcher Mini Grenade Launcher Build | -11 -10 -10 -9 -9 ------- Run | Yrd Mat Min Mat Min Slots Evolved 2 | . . . 2 . Power . | . . . . . Propulsion 2 | . . . 2 . Utility . | . . . . . Weapon . | . . . . . Parts Attached 37 | 6 11 . 8 12 Power 4 | 1 2 . . 1 Engine 4 | 1 2 . . 1 Core . | . . . . . Reactor . | . . . . . Propulsion 14 | 2 1 . 6 5 Treads 3 | 2 1 . . . Leg 11 | . . . 6 5 Wheel . | . . . . . Hover . | . . . . . Flight . | . . . . . Utility 9 | 1 5 . . 3 Device 5 | . 3 . . 2 Storage 2 | 1 1 . . . Processor . | . . . . . Hackware 1 | . 1 . . . Protection 1 | . . . . 1 Artifact . | . . . . . Weapon 10 | 2 3 . 2 3 Energy Gun 4 | . . . 2 2 Energy Cannon 2 | . 2 . . . Ballistic Gun 3 | 2 1 . . . Ballistic Cannon . | . . . . . Launcher 1 | . . . . 1 Special Weapon . | . . . . . Impact Weapon . | . . . . . Slashing Weapon . | . . . . . Piercing Weapon . | . . . . . Special Melee Weapon . | . . . . . Unidentified Prototypes . | . . . . . Parts Lost 11 | . 2 . . 9 Power 2 | . . . . 2 Propulsion 4 | . 1 . . 3 Utility 2 | . . . . 2 Weapon 3 | . 1 . . 2 Highest Loss Streak 8 | . 1 . . 8 To Critical Strikes 1 | . 1 . . . Average Backups 11 | 1 7 15 14 14 Power 1 | . 1 1 1 . Propulsion 3 | . 3 6 3 2 Utility 2 | . . 2 4 4 Weapon 3 | . 2 5 4 4 Tool/Special . | . . . . . Unused Backups 24 | . 6 . 6 12 Power . | . . . . . Propulsion 6 | . 2 . . 4 Utility 7 | . 1 . 1 5 Weapon 10 | . 3 . 5 2 Tool/Special 1 | . . . . 1 Average Slot Usage (%) 98 | . 99 100 98 96 Engine 12 | . 14 14 11 10 Treads 15 | . 27 28 1 . Leg 18 | . . . 41 42 Device 8 | . 6 14 11 10 Storage 12 | . 14 14 11 10 Hackware 3 | . 7 . . . Energy Gun 8 | . . . 14 20 Energy Cannon 8 | . 10 28 7 . Ballistic Gun 8 | . 17 . . . Peak Build Rating 23 | 6 12 12 18 23 Average Rating 13 | 4 9 12 16 18 On Entrance 9 | . 6 12 12 18 Avg Prop Armor Cover (%) . | . . . . . Naked Turns 16 | . . . . 16 Heaviest Build 34 | 11 34 34 34 32 Greatest Support 53 | 40 40 40 40 53 Greatest Overweight (x) 3 | . 3 . . . Average Overweight (x) . | . . . . . Largest Inventory Capacity 15 | 8 15 15 15 15 Average Capacity 12 | 7 9 15 15 14 Most Carried 15 | 4 15 15 15 15 Average Carried 11 | 1 7 15 14 14 Final Capacity 15 | 8 15 15 15 5 Final Carried 15 | 4 15 15 15 5 Class Distribution -------------------- 59% | Mutant 40% | Scavenger-Mutant Dominant Class ---------------- Mutant | -10/Materials Mutant | -10/Mines Scavenger-Mutant | -9/Materials Scavenger-Mutant | -9/Mines Resources | -11 -10 -10 -9 -9 ----------- Run | Yrd Mat Min Mat Min Matter Collected 796 | 55 566 . 80 95 Remotely . | . . . . . Salvage Created 1757 | . 1030 76 312 339 Parts 85 | . 56 5 7 17 Haulers Intercepted 1 | . 1 . . . Recyclers Shooed 7 | . 7 . . . Parts Field Recycled . | . . . . . Retrieved Matter . | . . . . . Parts Self-Destructed . | . . . . . Prevented . | . . . . . Parts Restored . | . . . . . Kills | -11 -10 -10 -9 -9 ------- Run | Yrd Mat Min Mat Min Combat Hostiles Destroyed 50 | . 20 3 6 21 Guns 17 | . 11 . 3 3 Cannons 15 | . 9 3 3 . AOE 18 | . . . . 18 Classes Destroyed 12 | . 7 . 2 3 Worker 2 | . 1 . . 1 Builder 1 | . 1 . . . Tunneler 2 | . . . 1 1 Hauler 1 | . 1 . . . Recycler 2 | . 2 . . . Operator 1 | . 1 . . . Swarmer 5 | . 3 2 . . Grunt 28 | . 17 1 5 5 Brawler 1 | . . . . 1 Protector 1 | . . . . 1 Sentry 1 | . . . 1 . Assembled 15 | . . . . 15 Best Kill Streak 15 | . 3 2 4 15 Combat Bots Only 15 | . 3 2 3 15 Max Kills in Single Turn 4 | . 1 1 1 4 Gunslinging . | . . . . . Exploded 3 | . . . . 3 Melee . | . . . . . Uniques/NPCs Destroyed . | . . . . . Combat | -11 -10 -10 -9 -9 -------- Run | Yrd Mat Min Mat Min Hostile Shots Fired 189 | . 93 9 20 67 Missed 54 | . 31 . 4 19 Hits 135 | . 62 9 16 48 Melee 5 | . . . . 5 Projectile 130 | . 62 9 16 43 AOE 16 | . . . . 16 Critical Strikes 4 | . 2 . . 2 Damage Taken 2284 | . 687 112 197 1288 Core 555 | . 104 42 53 356 Absorbed by Shields . | . . . . . Regen/Repaired (Parts) 101 | . 101 . . . Core Remaining (%) 70 | 100 . 41 . . Volleys Fired 156 | . 95 8 26 27 Largest 2 | . 2 2 2 2 Hottest 136 | . 136 136 136 126 Shots Fired 299 | . 187 16 52 44 Gun 201 | . 133 . 34 34 Cannon 88 | . 54 16 18 . Launcher 10 | . . . . 10 Special . | . . . . . Kinetic 133 | . 133 . . . Thermal 156 | . 54 16 52 34 Explosive 10 | . . . . 10 Electromagnetic . | . . . . . Robot Hit Streak 18 | . 17 6 18 8 Robot Miss Streak 4 | . 4 2 4 4 Penetration Max . | . . . . . Secondary Targets 2 | . 2 . . . Max Gunslinging Chain 1 | . 1 . . . Shots Hit Robots 180 | . 112 9 32 27 Core Hits 109 | . 48 3 8 50 Critical Kills 1 | . 1 . . . Critical Parts Destroyed . | . . . . . Critical Strikes 3 | . 1 . 1 1 Burn 2 | . . . 1 1 Destroy 1 | . 1 . . . Melee Attacks . | . . . . . Impact . | . . . . . Slashing . | . . . . . Piercing . | . . . . . Sneak Attacks . | . . . . . Combat Hostiles . | . . . . . Follow-up Attacks . | . . . . . Damage Inflicted 4102 | . 1427 204 580 1891 Guns 1594 | . 809 . 375 410 Cannons 1027 | . 618 204 205 . Explosions 1481 | . . . . 1481 Melee . | . . . . . Ramming . | . . . . . Kinetic 809 | . 809 . . . Thermal 1812 | . 618 204 580 410 Explosive 1481 | . . . . 1481 Electromagnetic . | . . . . . Impact . | . . . . . Slashing . | . . . . . Piercing . | . . . . . Highest Corruption 1 | . . . . 1 Average Corruption 1 | . . . . 1 Corruption Purged . | . . . . . Corruption Blocked . | . . . . . Effects 3 | . . . . 3 Message Errors 2 | . . . . 2 Data Loss (major) 1 | . . . . 1 Overload Shots . | . . . . . Overflow Damage 39 | . . . . 39 Projectiles . | . . . . . Explosions 39 | . . . . 39 Melee . | . . . . . Knockbacks . | . . . . . Impact . | . . . . . Kinetic . | . . . . . Secondary . | . . . . . Self-Inflicted Damage 102 | . . . . 102 Shots 3 | . . . . 3 Rammed . | . . . . . Targets Rammed . | . . . . . Kicked . | . . . . . Crushed . | . . . . . Highest Temperature 243 | . 243 183 108 236 Average Temperature 58 | . 65 77 31 70 Received Heat Transfer 465 | . 318 18 93 36 Siege Activations . | . . . . . Martial Activations . | . . . . . Shielding Activations . | . . . . . Robots Disrupted . | . . . . . Combat Hostiles . | . . . . . Robots Corrupted . | . . . . . Combat Hostiles . | . . . . . Parts Fried . | . . . . . Impact Corruptions . | . . . . . Robots Melted . | . . . . . Combat Hostiles . | . . . . . Parts Melted 5 | . . 1 3 1 Heat Transferred 3700 | . 1110 370 1258 962 Parts Sabotaged . | . . . . . Parts Stolen . | . . . . . Parts Stripped . | . . . . . Power Chain Reactions . | . . . . . Alert | -11 -10 -10 -9 -9 ------- Run | Yrd Mat Min Mat Min Maximum Alert Level 1 | . 1 . . . Low Security (%) 91 | 100 81 100 100 100 Level 1 8 | . 18 . . . Level 2 . | . . . . . Level 3 . | . . . . . Level 4 . | . . . . . Level 5 . | . . . . . High Security . | . . . . . Max Security . | . . . . . Peak Influence 238 | . 238 157 143 138 Initial 80 | . . 80 45 14 Average 67 | . 84 110 60 37 Influence Increases 1254 | . 641 127 232 254 Destroy 0b10 Robot/C 840 | . 400 100 180 160 Destroy 0b10 Robot/NC 50 | . 30 . 5 15 Destroy Leader 182 | . 102 20 30 30 Allied During Kill 22 | . . 7 7 8 Successful Hack 26 | . 17 . 9 . Disable Machine 30 | . 30 . . . Destroy Structure 44 | . 2 . 1 41 Lose Combat Pursuer 60 | . 60 . . . Influence Decreases 1254 | . 434 217 311 292 Entered New Map 223 | . . 127 72 24 Time Decay 965 | . 414 90 219 242 Lost Part 46 | . 20 . . 26 Lost Ally 20 | . . . 20 . Squads Dispatched 8 | . 7 . . 1 Investigation 3 | . 3 . . . Extermination . | . . . . . Reinforcement 4 | . 4 . . . Assault 1 | . . . . 1 Garrison . | . . . . . Intercept . | . . . . . Searches Triggered . | . . . . . Construction Impeded . | . . . . . Haulers Reinforced . | . . . . . Active Scanning Responses . | . . . . . Cargo Convoy Interrupts . | . . . . . Stealth | -11 -10 -10 -9 -9 --------- Run | Yrd Mat Min Mat Min Distress Signals 5 | . 4 . 1 . Communications Jammed . | . . . . . Distress Signals . | . . . . . Times Spotted 90 | . 43 5 11 31 Peak Tracking Total 19 | . 4 3 4 19 Tactical Retreats 3 | . 3 . . . Traps | -11 -10 -10 -9 -9 ------- Run | Yrd Mat Min Mat Min Traps Triggered 6 | . 6 . . . Indirectly . | . . . . . Trap Hack Attempts . | . . . . . Triggered . | . . . . . Disarmed . | . . . . . Reprogrammed . | . . . . . Reused . | . . . . . Traps Extracted . | . . . . . Installed . | . . . . . Triggered . | . . . . . Machines | -11 -10 -10 -9 -9 ---------- Run | Yrd Mat Min Mat Min Machines Disabled 2 | . 2 . . . Max in Single Turn 1 | . 1 . . . Machines Repaired . | . . . . . Machines Dismantled . | . . . . . Machines Sabotaged . | . . . . . Overloaded Fab Kills . | . . . . . Hacking | -11 -10 -10 -9 -9 --------- Run | Yrd Mat Min Mat Min Machines Accessed 9 | . 4 . 4 1 Terminals 7 | . 3 . 4 . Fabricators . | . . . . . Repair Stations 1 | . 1 . . . Recycling Units . | . . . . . Scanalyzers . | . . . . . Garrison Access . | . . . . . Total Hacks 21 | . 9 . 11 1 Successful 10 | . 5 . 4 1 Failed 11 | . 4 . 7 . Catastrophic 1 | . . . 1 . Database Lockouts . | . . . . . Manual 18 | . 7 . 11 . Terminals 18 | . 7 . 11 . Fabricators . | . . . . . Repair Stations 2 | . 2 . . . Recycling Units . | . . . . . Scanalyzers . | . . . . . Garrison Access . | . . . . . Terminal Hacks 4 | . 2 . 1 1 Part Schematic 1 | . 1 . . . Robot Analysis 1 | . . . 1 . Open Door 1 | . . . . 1 Branch Access Points 1 | . 1 . . . Fabricator Hacks . | . . . . . Repair Station Hacks 2 | . 2 . . . Scan Component 1 | . 1 . . . Repair 1 | . 1 . . . Recycling Unit Hacks . | . . . . . Scanalyzer . | . . . . . Garrison Access Hacks . | . . . . . Unauthorized Hacks 4 | . 1 . 3 . Terminals 4 | . 1 . 3 . Botnet 4 | . 1 . 3 . Fabricators . | . . . . . Repair Stations . | . . . . . Recycling Units . | . . . . . Scanalyzers . | . . . . . Garrison Access . | . . . . . Data Cores Recovered . | . . . . . Used . | . . . . . Hacking Detections 7 | . 3 . 4 . Full Trace Events . | . . . . . Feedback Events . | . . . . . Feedback Blocked . | . . . . . Robot Schematics Acquired . | . . . . . Robots Built . | . . . . . Authchips . | . . . . . Time . | . . . . . Total Robot Build Rating . | . . . . . Part Schematics Acquired 1 | . 1 . . . Parts Built . | . . . . . Authchips . | . . . . . Time . | . . . . . Total Part Build Rating . | . . . . . Part Studies Acquired . | . . . . . Parts Repaired 1 | . 1 . . . Time 26 | . 26 . . . Parts Recycled . | . . . . . Recycled Matter . | . . . . . Retrieved Matter . | . . . . . Retrieved Components . | . . . . . Parts Scanalyzed . | . . . . . Part Schematics Acquired . | . . . . . Parts Damaged . | . . . . . Bothacking | -11 -10 -10 -9 -9 ------------ Run | Yrd Mat Min Mat Min Used RIF Installer . | . . . . . Robots Hacked . | . . . . . Non-combat . | . . . . . Combat . | . . . . . Robot Hacks Applied . | . . . . . Relay Couplers Released . | . . . . . Fabnet Peak Effective % . | . . . . . Robots Rewired . | . . . . . Allies Hacked . | . . . . . Hacks Repelled . | . . . . . Allies | -11 -10 -10 -9 -9 -------- Run | Yrd Mat Min Mat Min Total Allies 5 | . . 1 . 4 Largest Group 3 | . . 1 1 3 Highest-Rated Group 40 | . . 31 31 40 Highest-Rated Ally 31 | . . 31 31 31 Total Orders . | . . . . . Ally Attacks 45 | . . 10 13 22 Total Damage 649 | . . 189 211 249 Kills 10 | . . 2 3 5 Allies Corrupted . | . . . . . Allies Melted . | . . . . . Intel | -11 -10 -10 -9 -9 ------- Run | Yrd Mat Min Mat Min Active Infowar (turns) 118 | . 118 . . . Seismic 118 | . 118 . . . Robot Analysis Total 1 | . . . 1 . Derelict Logs Recovered 2 | . . . . 2 Drone Launches . | . . . . . Drone Recoveries . | . . . . . Exploration | -11 -10 -10 -9 -9 ------------- Run | Yrd Mat Min Mat Min Turns Passed 2911 | 70 1380 197 477 787 Spaces Moved 1427 | 38 619 107 301 362 Core 35 | 2 1 . . 32 Treads 769 | 36 618 107 8 . Legs 623 | . . . 293 330 Wheels . | . . . . . Hover . | . . . . . Flight . | . . . . . Fastest Speed 50 | 50 160 160 120 50 Average Speed 139 | 154 160 160 121 113 Slowest Speed 200 | 160 200 160 160 120 Overloaded Moves . | . . . . . Propulsion Burnouts . | . . . . . Robots Hopped . | . . . . . Potential Cave-ins . | . . . . . Cave-ins Triggered . | . . . . . Exploration Rate (%) 39 | 4 87 26 27 55 Regions Visited 4 Branch Regions 2 Pre-discovered Areas . | . . . . . Known Exits Taken 1 | . 1 . . . Unknown Exits Taken 3 | 1 . 1 1 . Scrap Searched 1 | . . . . 1 Spaces Dug . | . . . . . Terrain Destroyed 66 | . . . . 66 Melee . | . . . . . Projectile . | . . . . . AOE 66 | . . . . 66 Terrain Rammed . | . . . . . Walls Destroyed . | . . . . . Machines Disabled . | . . . . . Actions | -11 -10 -10 -9 -9 --------- Run | Yrd Mat Min Mat Min Total 2069 | 47 842 117 367 696 Wait 372 | . 79 3 9 281 Move 1423 | 37 618 106 300 362 Hop . | . . . . . Pick Up 38 | 4 20 . 11 3 Fast Attach 17 | 6 9 . 2 . Attach 10 | . 2 . 4 4 Detach . | . . . . . Swap 18 | . 6 . 2 10 Drop 35 | . 13 . 13 9 Fire 156 | . 95 8 26 27 Melee . | . . . . . Ram . | . . . . . Kick . | . . . . . Crush . | . . . . . Escape Stasis . | . . . . . Rewire . | . . . . . Trap . | . . . . . Miscellaneous . | . . . . . Route ------- -11/Scrapyard -10/Materials (discovered 4 exits: *Mat x3 / *Min) -10/Mines -9/Materials -9/Mines (discovered 2 exits: [*Mat x2]) History --------- Turn | Location | Event 6 | -11/Scrapyard | Discovered new exit (range 15) 71 | -11/Scrapyard | Entered Materials 304 | -10/Materials | Build established: Mutant 386 | -10/Materials | Discovered new exit (range 13) 541 | -10/Materials | Discovered new exit (range 15) 610 | -10/Materials | Repaired Lgt. Treads 1133 | -10/Materials | Discovered new exit (range 6) 1144 | -10/Materials | Identified exit to Mines 1451 | -10/Materials | Entered Mines 1454 | -10/Mines | Received a Mining Laser from a helpful Derelict 1549 | -10/Mines | Core integrity fell below 50% 1598 | -10/Mines | Discovered new exit (range 3) 1648 | -10/Mines | Entered Materials 1648 | -9/Materials | Accompanied by 1 ally 1648 | -9/Materials | Evolved 2 slots: Propulsion x2 1951 | -9/Materials | Build established: Scavenger-Mutant 2092 | -9/Materials | Discovered new exit (range 12) 2125 | -9/Materials | Entered Mines 2129 | -9/Mines | Learned location of 1 exit from Materials 2140 | -9/Mines | Met a Derelict testing a Signal Generator 2151 | -9/Mines | Discovered new exit (range 5) 2162 | -9/Mines | Met a Derelict bent on vengeance 2341 | -9/Mines | Met a Derelict who couldn't figure out how to use a Trap Extractor 2722 | -9/Mines | Learned 4 Materials zone layouts 2800 | -9/Mines | Discovered new exit (range 8) 2847 | -9/Mines | Assisted by bots powering up and referring to "LRC-V3" 2853 | -9/Mines | Assembled infested the area 2892 | -9/Mines | Core integrity fell below 50% 2896 | -9/Mines | Released all parts (4) 2902 | -9/Mines | Destroyed 15 combat bots 2910 | -9/Mines | Lost 3 allies 2911 | -9/Mines | Core integrity fell below 20% 2912 | -9/Mines | Destroyed by D-53 Grenadier with Mini Grenade Launcher Last Messages --------------- data lost. 02887_ as-47424 destroyed. 02887_ Carbon-fiber Leg destroyed. 02889_ K-01 Serf collects debris. 02890_ The unstable cave ceiling collapses. 02891_ Aluminum Leg destroyed. 02893_ The unstable cave ceiling collapses. 02893_ Ion Engine destroyed. 02895_ K-01 Serf collects debris. 02895_ Field Laser destroyed. 02895_ Imp. Carbon-fiber Leg destroyed. 02896_ Released Field Laser. 02896_ Released Lrg. Storage Unit. 02896_ Released Aluminum Leg. 02896_ Released Imp. Light Armor Plating. 02897_ The unstable cave ceiling collapses. 02898_ K-01 Serf collects debris. 02899_ The unstable cave ceiling collapses. 02906_ Aluminum Leg crushed. 02906_ The unstable cave ceiling collapses. Map ----- +----------------------------------------------------+ | ????????????????????????????????????? | | ????????????????????????????????????? | | ????????????????????????????????????? | | ????????????????????????????????????? | | ????????????????????????????????????? | | ????????????????????????????????????? | | ????????????????????????????????????? | | ????????????????????????????????????? | | ????????????????????????????????????? | | ????????????????????????????????????? | | ???????????????????????????# ???????? | | ??????????????????????????# ?????? | | ?????????????????????????# ???? | | ????????????????????????? ???? | | ????????????????????????? ????? | | ????????????????????????? #????? | | ????????????????????????? ##???? | | ????????????????????????? #???? | | ????????????????????????? #???? | | ????????###?????????????? #???? | | ???????# ?????????????# ##??? | | ???????# ??????????????# ##?? | | ???????# #???????????#### ##? | | ??????## #???????????# #? | | ?????## #?????????### #? | | #????# ##????????# < @ #?? | | #????# ##?????### # #?? | | ###?## ####### ## ##?? | | ### # ##?##??? | | [% # ####??? | | * ## d ##?? | | #?? | | = %= d #?? | | ## # #? | | ?## ###### #? | | ??## !//## ##?????# ##? | | ???##### ![=# ## ##???????###?? | | ???????## ![# ######????????????? | | ????????# ! #?????????????????? | | ????????## # ##?????????????????? | | | | | | | | | | | | | | | | | | | | | +----------------------------------------------------+ Best States ------------- Heat Dissipation 42 Energy Generation 10 Energy Capacity 250 Matter Stores 300 Matter Capacity 300 Sight Range 16 Terrain Scan Density 10 Armor Coverage 150 Evasion (%) 55 Recoil Reduction 2 Offensive Hacking 10 Item Schematics ----------------- Hcp. Storage Unit | -10/Materials | Hacked Robot Schematics ------------------ None Fabricated ------------ Nothing Repaired ---------- Lgt. Treads | 27% | -10/Materials Studied --------- None Alien Tech Used ----------------- None Achievements -------------- None Challenges ------------ None Game ------ Seed WarpStealthRailcannon Manual? 0 Play Time 00:17:16 Cumulative 433.7 hours Start 2026.07.11 @ 04:03:55 End 2026.07.11 @ 04:37:00 Sessions 1 Manual Loads 0 Difficulty Rogue Special Mode None Game No. 399 Rogue 399 Adventurer 0 Explorer 0 Win Type - Total 11 Types 7/0/2/1/0/0/0/0/0/1 Lore% 61 Gallery% 68 Achievement% 64 Wizard Run 0 Options --------- Layout 1 ASCII 0 Keyboard 0 Movement Mouse Keybinds 0 Fullscreen 2 Font 24/Cog Map View 50x35 Zoom Use 60% Tactical HUD 1 Map Filters NONE Filters NONE Steam 1 RUN: ef844e6a-b3a1-434e-8815-e13030902c40